[Event "January 9 Early 2024"]
[Site "https://www.chess.com"]
[Date "2024.01.11"]
[Round "2"]
[White "Novozhilov, Semen"]
[Black "Szyszylo, Rafal"]
[Result "1-0"]
[Board "36"]
[TimeControl "180+1"]
[WhiteFideId "24289167"]
[BlackFideId "1109626"]
[WhiteElo "2706"]
[BlackElo "2402"]
[WhiteTeam "RUS"]
[BlackTeam "POL"]
[WhiteClock "0:01:45"]
[BlackClock "0:00:27"]

1. d4 {[%clk 0:03:00]}  d6 {[%clk 0:02:47]} 2. e4 {[%clk 0:03:00]}  g6 {[%clk 0:02:47]} 3. Nc3 {[%clk 0:03:01]}  Nf6 {[%clk 0:02:47]} 4. Nf3 {[%clk 0:03:01]}  Bg7 {[%clk 0:02:44]} 5. Be3 {[%clk 0:03:01]}  O-O {[%clk 0:02:43]} 6. Qd2 {[%clk 0:03:01]}  c6 {[%clk 0:02:43]} 7. O-O-O {[%clk 0:02:59]}  b5 {[%clk 0:02:43]} 8. Bd3 {[%clk 0:02:58]}  a5 {[%clk 0:02:41]} 9. Bh6 {[%clk 0:02:55]}  Bxh6 {[%clk 0:02:41]} 10. Qxh6 {[%clk 0:02:56]}  Ng4 {[%clk 0:02:42]} 11. Qd2 {[%clk 0:02:52]}  b4 {[%clk 0:02:42]} 12. Na4 {[%clk 0:02:49]}  e5 {[%clk 0:02:37]} 13. dxe5 {[%clk 0:02:48]}  Nxe5 {[%clk 0:02:27]} 14. Nxe5 {[%clk 0:02:48]}  dxe5 {[%clk 0:02:27]} 15. h4 {[%clk 0:02:49]}  Ba6 {[%clk 0:01:50]} 16. Nc5 {[%clk 0:02:41]}  Bxd3 {[%clk 0:01:49]} 17. Nxd3 {[%clk 0:02:42]}  Qe7 {[%clk 0:01:47]} 18. h5 {[%clk 0:02:41]}  Nd7 {[%clk 0:01:47]} 19. Qh6 {[%clk 0:02:36]}  Nf6 {[%clk 0:01:45]} 20. hxg6 {[%clk 0:02:35]}  fxg6 {[%clk 0:01:45]} 21. f3 {[%clk 0:02:35]}  c5 {[%clk 0:01:39]} 22. g4 {[%clk 0:02:25]}  c4 {[%clk 0:01:33]} 23. g5 {[%clk 0:01:57]}  Nh5 {[%clk 0:01:28]} 24. Nf2 {[%clk 0:01:56]}  Qg7 {[%clk 0:00:31]} 25. Ng4 {[%clk 0:01:46]}  Qxh6 {[%clk 0:00:30]} 26. Nxh6+ {[%clk 0:01:46]}  Kh8 {[%clk 0:00:30]} 27. Rd7 {[%clk 0:01:44]}  Rad8 {[%clk 0:00:29]} 28. Rxd8 {[%clk 0:01:44]}  Rxd8 {[%clk 0:00:27]} 29. Nf7+ {[%clk 0:01:45]} 1-0

[Event "January 9 Early 2024"]
[Site "https://www.chess.com"]
[Date "2024.01.11"]
[Round "2"]
[White "Zhigalko, Sergei"]
[Black "Onufrienko, Vladislav"]
[Result "1-0"]
[Board "39"]
[TimeControl "180+1"]
[WhiteFideId "13502956"]
[BlackFideId "13804332"]
[WhiteElo "2916"]
[BlackElo "2606"]
[WhiteTeam "BLR"]
[BlackTeam "KGZ"]
[WhiteClock "0:00:06"]
[BlackClock "0:02:01"]

1. e4 {[%clk 0:03:00]}  Nf6 {[%clk 0:03:00]} 2. e5 {[%clk 0:03:01]}  Nd5 {[%clk 0:03:01]} 3. d4 {[%clk 0:03:00]}  d6 {[%clk 0:03:01]} 4. Nf3 {[%clk 0:03:00]}  dxe5 {[%clk 0:03:01]} 5. Nxe5 {[%clk 0:03:00]}  Nd7 {[%clk 0:03:02]} 6. Nxf7 {[%clk 0:02:59]}  Kxf7 {[%clk 0:03:03]} 7. Qh5+ {[%clk 0:02:58]}  Ke6 {[%clk 0:03:03]} 8. c4 {[%clk 0:02:56]}  N5f6 {[%clk 0:03:04]} 9. d5+ {[%clk 0:02:56]}  Kd6 {[%clk 0:03:04]} 10. Qf7 {[%clk 0:02:55]}  Ne5 {[%clk 0:03:05]} 11. Bf4 {[%clk 0:02:53]}  c5 {[%clk 0:03:05]} 12. Nc3 {[%clk 0:02:37]}  a6 {[%clk 0:03:05]} 13. O-O-O {[%clk 0:02:31]}  g6 {[%clk 0:03:04]} 14. Bxe5+ {[%clk 0:01:19]}  Kxe5 {[%clk 0:02:58]} 15. d6 {[%clk 0:01:19]}  Bh6+ {[%clk 0:02:51]} 16. Kc2 {[%clk 0:01:02]}  Qe8 {[%clk 0:02:52]} 17. Rd5+ {[%clk 0:00:27]}  Nxd5 {[%clk 0:02:29]} 18. Qxd5+ {[%clk 0:00:26]}  Kf6 {[%clk 0:02:30]} 19. Ne4+ {[%clk 0:00:22]}  Kg7 {[%clk 0:02:30]} 20. Qe5+ {[%clk 0:00:19]}  Kg8 {[%clk 0:02:30]} 21. Nf6+ {[%clk 0:00:14]}  exf6 {[%clk 0:02:15]} 22. Qxe8+ {[%clk 0:00:14]}  Bf8 {[%clk 0:02:12]} 23. d7 {[%clk 0:00:12]}  Bxd7 {[%clk 0:02:12]} 24. Qxa8 {[%clk 0:00:11]}  Bc6 {[%clk 0:02:06]} 25. Bd3 {[%clk 0:00:09]}  Kg7 {[%clk 0:02:05]} 26. Qb8 {[%clk 0:00:08]}  Be7 {[%clk 0:02:04]} 27. Qc7 {[%clk 0:00:08]}  Re8 {[%clk 0:02:04]} 28. Re1 {[%clk 0:00:07]}  Kf7 {[%clk 0:02:05]} 29. Be4 {[%clk 0:00:07]}  Bxe4+ {[%clk 0:02:00]} 30. Rxe4 {[%clk 0:00:06]}  f5 {[%clk 0:02:01]} 31. Re2 {[%clk 0:00:06]} 1-0

[Event "January 9 Early 2024"]
[Site "https://www.chess.com"]
[Date "2024.01.11"]
[Round "2"]
[White "Fedoseev, Vladimir"]
[Black "Filali, Razzouki Marouane"]
[Result "1-0"]
[Board "40"]
[TimeControl "180+1"]
[WhiteFideId "24130737"]
[BlackFideId "9003720"]
[WhiteElo "3055"]
[BlackElo "2426"]
[WhiteTeam "SLO"]
[BlackTeam "MAR"]
[WhiteClock "0:01:42"]
[BlackClock "0:00:21"]

1. c4 {[%clk 0:03:00]}  Nf6 {[%clk 0:02:59]} 2. g3 {[%clk 0:03:01]}  e6 {[%clk 0:02:59]} 3. Bg2 {[%clk 0:03:01]}  d5 {[%clk 0:02:59]} 4. Nf3 {[%clk 0:03:01]}  Be7 {[%clk 0:02:57]} 5. O-O {[%clk 0:03:01]}  O-O {[%clk 0:02:54]} 6. b3 {[%clk 0:03:01]}  c6 {[%clk 0:02:50]} 7. Bb2 {[%clk 0:03:00]}  Nbd7 {[%clk 0:02:45]} 8. Qc2 {[%clk 0:02:58]}  Ne4 {[%clk 0:02:37]} 9. d3 {[%clk 0:02:51]}  Ng5 {[%clk 0:02:21]} 10. Nbd2 {[%clk 0:02:40]}  Nxf3+ {[%clk 0:02:17]} 11. Nxf3 {[%clk 0:02:40]}  Bf6 {[%clk 0:02:17]} 12. e4 {[%clk 0:02:26]}  Bxb2 {[%clk 0:02:16]} 13. Qxb2 {[%clk 0:02:26]}  Qf6 {[%clk 0:02:10]} 14. e5 {[%clk 0:02:14]}  Qe7 {[%clk 0:02:08]} 15. cxd5 {[%clk 0:02:14]}  cxd5 {[%clk 0:02:05]} 16. Rac1 {[%clk 0:02:15]}  Nb6 {[%clk 0:02:01]} 17. a4 {[%clk 0:02:13]}  Qb4 {[%clk 0:01:59]} 18. Qd4 {[%clk 0:02:09]}  Qxd4 {[%clk 0:01:25]} 19. Nxd4 {[%clk 0:02:09]}  Nd7 {[%clk 0:01:15]} 20. f4 {[%clk 0:02:06]}  b6 {[%clk 0:01:13]} 21. b4 {[%clk 0:01:56]}  Ba6 {[%clk 0:01:12]} 22. Rc7 {[%clk 0:01:52]}  Bc8 {[%clk 0:00:47]} 23. Nc6 {[%clk 0:01:50]}  Re8 {[%clk 0:00:42]} 24. Rc1 {[%clk 0:01:48]}  Kf8 {[%clk 0:00:37]} 25. Nxa7 {[%clk 0:01:47]}  b5 {[%clk 0:00:25]} 26. Nxc8 {[%clk 0:01:46]}  bxa4 {[%clk 0:00:23]} 27. Nd6 {[%clk 0:01:41]}  Red8 {[%clk 0:00:21]} 28. Nb7 {[%clk 0:01:42]} 1-0

[Event "January 9 Early 2024"]
[Site "https://www.chess.com"]
[Date "2024.01.11"]
[Round "2"]
[White "Kobalia, Mikhail"]
[Black "Szczepanek, Radoslaw"]
[Result "1-0"]
[Board "44"]
[TimeControl "180+1"]
[WhiteFideId "4119150"]
[BlackFideId "1120395"]
[WhiteElo "2754"]
[BlackElo "2403"]
[WhiteTeam "FID"]
[BlackTeam "POL"]
[WhiteClock "0:01:44"]
[BlackClock "0:00:01"]

1. e4 {[%clk 0:03:00]}  c5 {[%clk 0:02:59]} 2. Nf3 {[%clk 0:02:59]}  Nc6 {[%clk 0:02:59]} 3. Bb5 {[%clk 0:02:59]}  a6 {[%clk 0:02:57]} 4. Bxc6 {[%clk 0:02:59]}  dxc6 {[%clk 0:02:57]} 5. O-O {[%clk 0:02:58]}  Qc7 {[%clk 0:02:58]} 6. a4 {[%clk 0:02:58]}  a5 {[%clk 0:02:57]} 7. Na3 {[%clk 0:02:58]}  e5 {[%clk 0:02:56]} 8. Nc4 {[%clk 0:02:57]}  f6 {[%clk 0:02:53]} 9. c3 {[%clk 0:02:57]}  Be6 {[%clk 0:02:52]} 10. b3 {[%clk 0:02:57]}  g5 {[%clk 0:02:46]} 11. d4 {[%clk 0:02:55]}  g4 {[%clk 0:02:14]} 12. Nh4 {[%clk 0:02:55]}  cxd4 {[%clk 0:02:06]} 13. cxd4 {[%clk 0:02:53]}  O-O-O {[%clk 0:01:39]} 14. Bd2 {[%clk 0:02:49]}  Bxc4 {[%clk 0:01:33]} 15. bxc4 {[%clk 0:02:49]}  Rxd4 {[%clk 0:01:33]} 16. Qxg4+ {[%clk 0:02:33]}  Kb8 {[%clk 0:01:05]} 17. Be3 {[%clk 0:02:22]}  h5 {[%clk 0:00:42]} 18. Qf3 {[%clk 0:02:13]}  Rxc4 {[%clk 0:00:33]} 19. Ng6 {[%clk 0:02:10]}  Qh7 {[%clk 0:00:17]} 20. Nxf8 {[%clk 0:02:07]}  Qg7 {[%clk 0:00:12]} 21. Ne6 {[%clk 0:02:00]}  Qf7 {[%clk 0:00:11]} 22. Nc5 {[%clk 0:01:57]}  Nh6 {[%clk 0:00:11]} 23. Rfd1 {[%clk 0:01:55]}  Rg8 {[%clk 0:00:07]} 24. Rd7 {[%clk 0:01:45]}  Qg6 {[%clk 0:00:01]} 25. Rxb7+ {[%clk 0:01:44]} 1-0

[Event "January 9 Early 2024"]
[Site "https://www.chess.com"]
[Date "2024.01.11"]
[Round "2"]
[White "Pichot, Alan"]
[Black "Lymar, Vladislav"]
[Result "1-0"]
[Board "45"]
[TimeControl "180+1"]
[WhiteFideId "110973"]
[BlackFideId "14162180"]
[WhiteElo "2820"]
[BlackElo "2546"]
[WhiteTeam "ESP"]
[BlackTeam "UKR"]
[WhiteClock "0:01:10"]
[BlackClock "0:00:38"]

1. e4 {[%clk 0:03:00]}  d6 {[%clk 0:02:58]} 2. d4 {[%clk 0:02:59]}  Nf6 {[%clk 0:02:59]} 3. Nc3 {[%clk 0:03:00]}  e5 {[%clk 0:02:59]} 4. Nge2 {[%clk 0:02:59]}  Be7 {[%clk 0:02:59]} 5. h3 {[%clk 0:02:57]}  c6 {[%clk 0:02:51]} 6. g4 {[%clk 0:02:55]}  h6 {[%clk 0:02:51]} 7. Bg2 {[%clk 0:02:50]}  Nbd7 {[%clk 0:02:41]} 8. O-O {[%clk 0:02:48]}  b5 {[%clk 0:02:38]} 9. a3 {[%clk 0:02:45]}  Bb7 {[%clk 0:02:36]} 10. Be3 {[%clk 0:02:44]}  Qc7 {[%clk 0:02:33]} 11. f4 {[%clk 0:02:35]}  a6 {[%clk 0:02:17]} 12. Ng3 {[%clk 0:02:34]}  g6 {[%clk 0:02:16]} 13. Qd2 {[%clk 0:02:28]}  h5 {[%clk 0:02:11]} 14. g5 {[%clk 0:02:20]}  Nh7 {[%clk 0:02:12]} 15. h4 {[%clk 0:02:19]}  O-O-O {[%clk 0:02:09]} 16. Rad1 {[%clk 0:02:12]}  Nb6 {[%clk 0:02:08]} 17. b3 {[%clk 0:02:11]}  Nf8 {[%clk 0:02:05]} 18. Qf2 {[%clk 0:01:56]}  Nbd7 {[%clk 0:01:45]} 19. fxe5 {[%clk 0:01:30]}  dxe5 {[%clk 0:01:45]} 20. d5 {[%clk 0:01:31]}  cxd5 {[%clk 0:01:42]} 21. Nxd5 {[%clk 0:01:29]}  Bxd5 {[%clk 0:01:42]} 22. exd5 {[%clk 0:01:27]}  Bd6 {[%clk 0:01:05]} 23. Ne4 {[%clk 0:01:20]}  Kb8 {[%clk 0:00:50]} 24. c4 {[%clk 0:01:17]}  bxc4 {[%clk 0:00:47]} 25. bxc4 {[%clk 0:01:18]}  Rc8 {[%clk 0:00:45]} 26. Rb1+ {[%clk 0:01:12]}  Ka8 {[%clk 0:00:45]} 27. c5 {[%clk 0:01:10]}  Nxc5 {[%clk 0:00:38]} 28. Nxc5 {[%clk 0:01:10]} 1-0

[Event "January 9 Early 2024"]
[Site "https://www.chess.com"]
[Date "2024.01.11"]
[Round "2"]
[White "Hoffmann, Asa"]
[Black "Isajevsky, Anton"]
[Result "1-0"]
[Board "46"]
[TimeControl "180+1"]
[WhiteFideId "2001470"]
[BlackFideId "4142500"]
[WhiteElo "2369"]
[BlackElo "2623"]
[WhiteTeam "USA"]
[BlackTeam "RUS"]
[WhiteClock "0:01:58"]
[BlackClock "0:00:02"]

1. d4 {[%clk 0:02:58]}  d5 {[%clk 0:02:59]} 2. Bg5 {[%clk 0:02:55]}  h6 {[%clk 0:02:59]} 3. Bh4 {[%clk 0:02:54]}  c6 {[%clk 0:02:59]} 4. e3 {[%clk 0:02:54]}  Qb6 {[%clk 0:02:59]} 5. b3 {[%clk 0:02:54]}  Bf5 {[%clk 0:02:59]} 6. Bd3 {[%clk 0:02:53]}  Bxd3 {[%clk 0:02:58]} 7. Qxd3 {[%clk 0:02:53]}  e6 {[%clk 0:02:59]} 8. Nd2 {[%clk 0:02:52]}  Be7 {[%clk 0:02:35]} 9. Bg3 {[%clk 0:02:51]}  Nd7 {[%clk 0:02:34]} 10. Ngf3 {[%clk 0:02:51]}  Ngf6 {[%clk 0:02:34]} 11. h3 {[%clk 0:02:50]}  a5 {[%clk 0:02:33]} 12. a3 {[%clk 0:02:49]}  Qa6 {[%clk 0:02:26]} 13. c4 {[%clk 0:02:48]}  O-O {[%clk 0:02:20]} 14. O-O {[%clk 0:02:47]}  c5 {[%clk 0:02:01]} 15. Rfc1 {[%clk 0:02:46]}  cxd4 {[%clk 0:01:47]} 16. exd4 {[%clk 0:02:45]}  a4 {[%clk 0:01:31]} 17. b4 {[%clk 0:02:43]}  dxc4 {[%clk 0:01:30]} 18. Qxc4 {[%clk 0:02:34]}  Qxc4 {[%clk 0:01:15]} 19. Rxc4 {[%clk 0:02:33]}  Rfc8 {[%clk 0:01:14]} 20. Rac1 {[%clk 0:02:32]}  Rxc4 {[%clk 0:01:07]} 21. Rxc4 {[%clk 0:02:32]}  Nd5 {[%clk 0:01:08]} 22. Ne4 {[%clk 0:02:27]}  Kf8 {[%clk 0:00:37]} 23. Nc5 {[%clk 0:02:26]}  Nxc5 {[%clk 0:00:14]} 24. dxc5 {[%clk 0:02:26]}  Ke8 {[%clk 0:00:15]} 25. Nd4 {[%clk 0:02:24]}  Kd7 {[%clk 0:00:14]} 26. b5 {[%clk 0:02:10]}  Bf6 {[%clk 0:00:10]} 27. c6+ {[%clk 0:02:09]}  bxc6 {[%clk 0:00:10]} 28. bxc6+ {[%clk 0:02:08]}  Ke7 {[%clk 0:00:05]} 29. Nb5 {[%clk 0:02:04]}  e5 {[%clk 0:00:04]} 30. Rc5 {[%clk 0:02:02]}  Nb6 {[%clk 0:00:01]} 31. Bxe5 {[%clk 0:01:59]}  Rc8 {[%clk 0:00:01]} 32. Bxf6+ {[%clk 0:01:58]}  Kxf6 {[%clk 0:00:02]} 33. c7 {[%clk 0:01:58]} 1-0

[Event "January 9 Early 2024"]
[Site "https://www.chess.com"]
[Date "2024.01.11"]
[Round "2"]
[White "Coelho, Ramyres Santana"]
[Black "Osmak, Yuliia"]
[Result "0-1"]
[Board "49"]
[TimeControl "180+1"]
[WhiteFideId "2120690"]
[BlackFideId "14101602"]
[WhiteElo "2292"]
[BlackElo "2519"]
[WhiteTeam "BRA"]
[BlackTeam "UKR"]
[WhiteClock "0:01:23"]
[BlackClock "0:00:33"]

1. e4 {[%clk 0:03:00]}  e5 {[%clk 0:02:59]} 2. Nf3 {[%clk 0:02:55]}  Nc6 {[%clk 0:02:59]} 3. d4 {[%clk 0:02:55]}  exd4 {[%clk 0:02:57]} 4. Bc4 {[%clk 0:02:56]}  Bb4+ {[%clk 0:02:56]} 5. c3 {[%clk 0:02:56]}  dxc3 {[%clk 0:02:54]} 6. O-O {[%clk 0:02:55]}  d6 {[%clk 0:02:41]} 7. a3 {[%clk 0:02:54]}  Ba5 {[%clk 0:02:33]} 8. b4 {[%clk 0:02:53]}  Bb6 {[%clk 0:02:32]} 9. Nxc3 {[%clk 0:02:52]}  Nf6 {[%clk 0:02:29]} 10. Bg5 {[%clk 0:02:51]}  h6 {[%clk 0:02:27]} 11. Bh4 {[%clk 0:02:49]}  g5 {[%clk 0:02:25]} 12. Nxg5 {[%clk 0:02:45]}  hxg5 {[%clk 0:02:24]} 13. Bxg5 {[%clk 0:02:46]}  Rg8 {[%clk 0:02:13]} 14. h4 {[%clk 0:02:45]}  Bd4 {[%clk 0:01:54]} 15. Rc1 {[%clk 0:02:35]}  Be6 {[%clk 0:01:49]} 16. Qb3 {[%clk 0:02:28]}  Bxc4 {[%clk 0:01:38]} 17. Qxc4 {[%clk 0:02:29]}  Bxc3 {[%clk 0:01:33]} 18. Rxc3 {[%clk 0:02:25]}  Qe7 {[%clk 0:01:29]} 19. b5 {[%clk 0:02:16]}  Ne5 {[%clk 0:01:28]} 20. Qxc7 {[%clk 0:02:15]}  Qxc7 {[%clk 0:01:23]} 21. Rxc7 {[%clk 0:02:16]}  Nxe4 {[%clk 0:01:23]} 22. Rxb7 {[%clk 0:02:05]}  Nxg5 {[%clk 0:01:20]} 23. hxg5 {[%clk 0:02:06]}  O-O-O {[%clk 0:00:52]} 24. Rxa7 {[%clk 0:02:02]}  Kb8 {[%clk 0:00:51]} 25. Re7 {[%clk 0:01:51]}  Rde8 {[%clk 0:00:48]} 26. Rxe8+ {[%clk 0:01:44]}  Rxe8 {[%clk 0:00:49]} 27. f4 {[%clk 0:01:42]}  Ng4 {[%clk 0:00:43]} 28. a4 {[%clk 0:01:32]}  Re4 {[%clk 0:00:37]} 29. a5 {[%clk 0:01:31]}  Rb4 {[%clk 0:00:34]} 30. b6 {[%clk 0:01:29]}  Rb5 {[%clk 0:00:34]} 31. Rd1 {[%clk 0:01:28]}  Rxa5 {[%clk 0:00:33]} 32. Rxd6 {[%clk 0:01:27]}  Ra1+ {[%clk 0:00:33]} 33. Rd1 {[%clk 0:01:23]}  Rxd1# {[%clk 0:00:33]} 0-1

[Event "January 9 Early 2024"]
[Site "https://www.chess.com"]
[Date "2024.01.11"]
[Round "2"]
[White "Salem, A.R. Saleh"]
[Black "Xie, Bryan"]
[Result "1-0"]
[Board "50"]
[TimeControl "180+1"]
[WhiteFideId "9301348"]
[BlackFideId "30941296"]
[WhiteElo "2970"]
[BlackElo "2423"]
[WhiteTeam "UAE"]
[BlackTeam "USA"]
[WhiteClock "0:01:33"]
[BlackClock "0:00:01"]

1. d4 {[%clk 0:02:58]}  d5 {[%clk 0:02:57]} 2. c4 {[%clk 0:02:58]}  dxc4 {[%clk 0:02:56]} 3. Nf3 {[%clk 0:02:58]}  Nf6 {[%clk 0:02:54]} 4. Nc3 {[%clk 0:02:58]}  e6 {[%clk 0:02:39]} 5. e4 {[%clk 0:02:56]}  a6 {[%clk 0:02:27]} 6. Bxc4 {[%clk 0:02:55]}  b5 {[%clk 0:02:27]} 7. Bd3 {[%clk 0:02:51]}  Bb7 {[%clk 0:02:25]} 8. O-O {[%clk 0:02:50]}  Nbd7 {[%clk 0:02:21]} 9. e5 {[%clk 0:02:46]}  Nd5 {[%clk 0:02:14]} 10. a4 {[%clk 0:02:46]}  b4 {[%clk 0:02:08]} 11. Ne4 {[%clk 0:02:45]}  c5 {[%clk 0:01:58]} 12. Nfg5 {[%clk 0:02:25]}  cxd4 {[%clk 0:01:41]} 13. Nxf7 {[%clk 0:01:45]}  Kxf7 {[%clk 0:01:37]} 14. Ng5+ {[%clk 0:01:45]}  Ke7 {[%clk 0:01:01]} 15. Qh5 {[%clk 0:01:42]}  Qe8 {[%clk 0:00:34]} 16. Qh3 {[%clk 0:01:41]}  Nxe5 {[%clk 0:00:21]} 17. Re1 {[%clk 0:01:39]}  Kd6 {[%clk 0:00:04]} 18. Qg3 {[%clk 0:01:39]}  Kc7 {[%clk 0:00:02]} 19. Qxe5+ {[%clk 0:01:37]}  Bd6 {[%clk 0:00:03]} 20. Nxe6+ {[%clk 0:01:37]}  Kc6 {[%clk 0:00:01]} 21. Nxd4+ {[%clk 0:01:33]}  Kd7 {[%clk 0:00:01]} 22. Qf5+ {[%clk 0:01:33]}  Kc7 {[%clk 0:00:02]} 23. Rxe8 {[%clk 0:01:33]}  Raxe8 {[%clk 0:00:01]} 24. Bd2 {[%clk 0:01:33]} 1-0

[Event "January 9 Early 2024"]
[Site "https://www.chess.com"]
[Date "2024.01.11"]
[Round "2"]
[White "Iljin, Timofey"]
[Black "Zgadzaj, Rafal"]
[Result "1-0"]
[Board "54"]
[TimeControl "180+1"]
[WhiteFideId "14110180"]
[BlackFideId "1113712"]
[WhiteElo "2532"]
[BlackElo "2336"]
[WhiteTeam "UKR"]
[BlackTeam "POL"]
[WhiteClock "0:00:40"]
[BlackClock "0:00:56"]

1. e4 {[%clk 0:03:00]}  e6 {[%clk 0:02:59]} 2. d4 {[%clk 0:03:00]}  c5 {[%clk 0:02:59]} 3. c3 {[%clk 0:03:00]}  d5 {[%clk 0:02:58]} 4. Nd2 {[%clk 0:03:01]}  dxe4 {[%clk 0:02:56]} 5. Nxe4 {[%clk 0:03:02]}  cxd4 {[%clk 0:02:56]} 6. cxd4 {[%clk 0:03:03]}  Nf6 {[%clk 0:02:55]} 7. Nc3 {[%clk 0:03:00]}  Be7 {[%clk 0:02:54]} 8. Nf3 {[%clk 0:03:00]}  Nc6 {[%clk 0:02:52]} 9. Bd3 {[%clk 0:03:00]}  a6 {[%clk 0:02:52]} 10. O-O {[%clk 0:02:59]}  b5 {[%clk 0:02:52]} 11. a3 {[%clk 0:02:56]}  Bb7 {[%clk 0:02:51]} 12. Re1 {[%clk 0:02:53]}  O-O {[%clk 0:02:50]} 13. Bb1 {[%clk 0:02:54]}  Rc8 {[%clk 0:02:38]} 14. Qd3 {[%clk 0:02:53]}  g6 {[%clk 0:02:38]} 15. Bh6 {[%clk 0:02:53]}  Re8 {[%clk 0:02:38]} 16. Ba2 {[%clk 0:02:53]}  Bf8 {[%clk 0:02:27]} 17. Bg5 {[%clk 0:02:51]}  h6 {[%clk 0:02:24]} 18. Bh4 {[%clk 0:02:45]}  Bg7 {[%clk 0:02:21]} 19. Rad1 {[%clk 0:02:33]}  Ne7 {[%clk 0:02:20]} 20. Ne5 {[%clk 0:02:02]}  Ned5 {[%clk 0:02:09]} 21. Ne4 {[%clk 0:01:33]}  g5 {[%clk 0:02:02]} 22. Nxg5 {[%clk 0:01:01]}  hxg5 {[%clk 0:02:03]} 23. Bxg5 {[%clk 0:01:02]}  Qc7 {[%clk 0:01:36]} 24. Bb1 {[%clk 0:00:56]}  Qc4 {[%clk 0:01:29]} 25. Qh3 {[%clk 0:00:52]}  Ne7 {[%clk 0:00:55]} 26. Bxf6 {[%clk 0:00:40]}  Bxf6 {[%clk 0:00:56]} 27. Qh7+ {[%clk 0:00:39]}  Kf8 {[%clk 0:00:56]} 28. Qxf7# {[%clk 0:00:40]} 1-0

[Event "January 9 Early 2024"]
[Site "https://www.chess.com"]
[Date "2024.01.11"]
[Round "2"]
[White "Giri, Anish"]
[Black "Rozman, Levy"]
[Result "1/2-1/2"]
[Board "56"]
[TimeControl "180+1"]
[WhiteFideId "24116068"]
[BlackFideId "2039877"]
[WhiteElo "2985"]
[BlackElo "2656"]
[WhiteTeam "NED"]
[BlackTeam "USA"]
[WhiteClock "0:01:22"]
[BlackClock "0:00:07"]

1. d4 {[%clk 0:03:00]}  d5 {[%clk 0:02:55]} 2. c4 {[%clk 0:03:01]}  dxc4 {[%clk 0:02:53]} 3. Nf3 {[%clk 0:03:00]}  Nf6 {[%clk 0:02:52]} 4. e3 {[%clk 0:03:00]}  Bg4 {[%clk 0:02:52]} 5. Bxc4 {[%clk 0:03:00]}  e6 {[%clk 0:02:52]} 6. h3 {[%clk 0:03:00]}  Bh5 {[%clk 0:02:52]} 7. O-O {[%clk 0:02:58]}  Bd6 {[%clk 0:02:47]} 8. Nc3 {[%clk 0:02:58]}  Nc6 {[%clk 0:02:48]} 9. Re1 {[%clk 0:02:32]}  O-O {[%clk 0:02:45]} 10. g4 {[%clk 0:02:32]}  Bg6 {[%clk 0:02:43]} 11. e4 {[%clk 0:02:33]}  Bb4 {[%clk 0:02:32]} 12. Bg5 {[%clk 0:02:19]}  h6 {[%clk 0:02:05]} 13. Bh4 {[%clk 0:02:19]}  Be7 {[%clk 0:02:05]} 14. Bg3 {[%clk 0:02:08]}  Bb4 {[%clk 0:01:59]} 15. Bh4 {[%clk 0:01:45]}  Be7 {[%clk 0:01:57]} 16. e5 {[%clk 0:01:45]}  Nd7 {[%clk 0:01:33]} 17. Bg3 {[%clk 0:01:41]}  Nb6 {[%clk 0:01:31]} 18. Bb3 {[%clk 0:01:41]}  a5 {[%clk 0:01:25]} 19. a3 {[%clk 0:01:39]}  Qd7 {[%clk 0:01:16]} 20. d5 {[%clk 0:01:24]}  exd5 {[%clk 0:01:13]} 21. Nxd5 {[%clk 0:01:24]}  Nxd5 {[%clk 0:00:54]} 22. Qd2 {[%clk 0:01:25]}  Rad8 {[%clk 0:00:16]} 23. Rad1 {[%clk 0:01:24]}  Nb6 {[%clk 0:00:11]} 24. Qf4 {[%clk 0:01:25]}  Qc8 {[%clk 0:00:06]} 25. Rc1 {[%clk 0:01:25]}  Nd5 {[%clk 0:00:06]} 26. Qa4 {[%clk 0:01:24]}  Nb6 {[%clk 0:00:06]} 27. Qf4 {[%clk 0:01:25]}  Nd5 {[%clk 0:00:06]} 28. Qa4 {[%clk 0:01:25]}  Nb6 {[%clk 0:00:07]} 29. Qf4 {[%clk 0:01:22]} 1/2-1/2

[Event "January 9 Early 2024"]
[Site "https://www.chess.com"]
[Date "2024.01.11"]
[Round "2"]
[White "Bachmann, Axel"]
[Black "McCoy, Owen"]
[Result "1-0"]
[Board "64"]
[TimeControl "180+1"]
[WhiteFideId "3700488"]
[BlackFideId "30924502"]
[WhiteElo "2898"]
[BlackElo "2589"]
[WhiteTeam "PAR"]
[BlackTeam "USA"]
[WhiteClock "0:01:31"]
[BlackClock "0:00:10"]

1. e4 {[%clk 0:03:00]}  e5 {[%clk 0:02:59]} 2. Nf3 {[%clk 0:02:59]}  Nc6 {[%clk 0:03:00]} 3. g3 {[%clk 0:03:00]}  Nf6 {[%clk 0:02:55]} 4. d3 {[%clk 0:03:00]}  Bc5 {[%clk 0:02:52]} 5. Bg2 {[%clk 0:02:59]}  d6 {[%clk 0:02:49]} 6. c3 {[%clk 0:02:57]}  Bb6 {[%clk 0:02:45]} 7. Nbd2 {[%clk 0:02:56]}  h6 {[%clk 0:02:41]} 8. Nc4 {[%clk 0:02:55]}  O-O {[%clk 0:02:40]} 9. a4 {[%clk 0:02:52]}  Be6 {[%clk 0:02:22]} 10. Qe2 {[%clk 0:02:42]}  d5 {[%clk 0:01:52]} 11. exd5 {[%clk 0:02:29]}  Bxd5 {[%clk 0:01:52]} 12. O-O {[%clk 0:02:24]}  Re8 {[%clk 0:01:46]} 13. Nfd2 {[%clk 0:02:15]}  Bxg2 {[%clk 0:01:34]} 14. Kxg2 {[%clk 0:02:16]}  Qd5+ {[%clk 0:00:56]} 15. Ne4 {[%clk 0:02:15]}  Rad8 {[%clk 0:00:50]} 16. Qf3 {[%clk 0:02:09]}  Nxe4 {[%clk 0:00:47]} 17. Qxe4 {[%clk 0:02:09]}  Qxd3 {[%clk 0:00:47]} 18. Qxd3 {[%clk 0:02:02]}  Rxd3 {[%clk 0:00:48]} 19. Re1 {[%clk 0:02:02]}  f6 {[%clk 0:00:41]} 20. h4 {[%clk 0:01:52]}  h5 {[%clk 0:00:40]} 21. a5 {[%clk 0:01:52]}  Bc5 {[%clk 0:00:39]} 22. Ra4 {[%clk 0:01:52]}  a6 {[%clk 0:00:38]} 23. Nd2 {[%clk 0:01:46]}  Bf8 {[%clk 0:00:37]} 24. Ne4 {[%clk 0:01:46]}  Kf7 {[%clk 0:00:36]} 25. Be3 {[%clk 0:01:45]}  Rd5 {[%clk 0:00:36]} 26. b4 {[%clk 0:01:43]}  Rd3 {[%clk 0:00:33]} 27. Ra2 {[%clk 0:01:39]}  Red8 {[%clk 0:00:33]} 28. Rb1 {[%clk 0:01:38]}  Rd1 {[%clk 0:00:32]} 29. Rbb2 {[%clk 0:01:37]}  R1d3 {[%clk 0:00:15]} 30. b5 {[%clk 0:01:37]}  axb5 {[%clk 0:00:15]} 31. Rxb5 {[%clk 0:01:38]}  R3d5 {[%clk 0:00:10]} 32. Rxb7 {[%clk 0:01:36]}  Nxa5 {[%clk 0:00:10]} 33. Rxc7+ {[%clk 0:01:35]}  Kg6 {[%clk 0:00:10]} 34. c4 {[%clk 0:01:31]} 1-0